fUST/lending_fUST_20250715
["ID","MTS","AMOUNT","RATE_DAILY","PERIOD"]
[372123968,1752528463644,-460.0,0.00022191,3]
[372123969,1752528463667,-460.0,0.00022191,3]
[372123970,1752528463690,-460.0,0.00022191,3]
[372123971,1752528463848,-460.0,0.00022191,3]
[372123972,1752528463878,-460.0,0.00022191,3]
[372123973,1752528463901,-460.0,0.00022191,3]
[372123974,1752528463924,-460.0,0.00022191,3]
[372123975,1752528463945,-460.0,0.00022191,3]
[372123976,1752528463967,-460.0,0.00022191,3]
[372123977,1752528463990,-460.0,0.00022191,3]
[372123978,1752528464011,-460.0,0.00022191,3]
[372123979,1752528464034,-460.0,0.00022191,3]
[372123980,1752528464055,-465.32266636,0.00022191,3]
[372123981,1752528464076,-460.0,0.00022191,3]
[372123982,1752528464097,-460.0,0.00022191,3]
[372123983,1752528464117,-460.0,0.00022191,3]
[372123984,1752528464139,-460.0,0.00022191,3]
[372123985,1752528464161,-460.0,0.00022191,3]
[372123986,1752528464183,-460.0,0.00022191,3]
[372123987,1752528464205,-460.0,0.00022191,3]
[372123988,1752528464227,-460.0,0.00022191,3]
[372123989,1752528464251,-460.0,0.00022191,3]
[372123990,1752528464274,-460.0,0.00022191,3]
[372123991,1752528464301,-282.66557727,0.00022191,3]
[372123992,1752528464323,-460.0,0.00022191,3]
[372123993,1752528464344,-191.54398059,0.00022191,3]
[372123994,1752528464365,-460.0,0.00022191,3]
[372123995,1752528464390,-460.0,0.00022191,3]
[372123996,1752528464411,-460.0,0.00022191,3]
[372123997,1752528464434,-460.0,0.00022191,3]
[372123998,1752528464456,-460.0,0.00022191,3]
[372123999,1752528464479,-460.0,0.00022191,3]
[372124000,1752528464501,-460.0,0.00022191,3]
[372124001,1752528464523,-794.77,0.00022191,3]
[372124002,1752528464546,-460.0,0.00022191,3]
[372124003,1752528464567,-460.0,0.00022191,3]
[372124004,1752528464589,-460.0,0.00022191,3]
[372124005,1752528464612,-467.25,0.00022191,3]
[372124006,1752528464634,-324.87441902,0.00022191,3]
[372124007,1752528464656,-460.0,0.00022191,3]
[372124008,1752528464677,-460.0,0.00022191,3]
[372124009,1752528464699,-460.0,0.00022191,3]
[372124010,1752528464726,-460.0,0.00022191,3]
[372124011,1752528464748,-272.72237341,0.00022191,3]
[372124012,1752528464772,-460.0,0.00022191,3]
[372124013,1752528464794,-460.0,0.00022191,3]
[372124014,1752528464817,-460.0,0.00022191,3]
[372124015,1752528464840,-548.69796544,0.00022191,3]
[372124016,1752528464862,-460.0,0.00022191,3]
[372124017,1752528464888,-1779.38,0.00022191,3]
[372124018,1752528464910,-460.0,0.00022191,3]
[372124019,1752528464932,-460.0,0.00022191,3]
[372124020,1752528464955,-460.0,0.00022191,3]
[372124021,1752528464978,-460.0,0.00022191,3]
[372124022,1752528465002,-460.0,0.00022191,3]
[372124023,1752528465026,-460.0,0.00022191,3]
[372124024,1752528465048,-460.0,0.00022191,3]
[372124025,1752528465070,-460.0,0.00022191,3]
[372124026,1752528465094,-460.0,0.00022191,3]
[372124027,1752528465120,-460.0,0.00022191,3]
[372124028,1752528465145,-460.0,0.00022191,3]
[372124029,1752528465172,-460.0,0.00022191,3]
[372124030,1752528465195,-153.06586318,0.00022191,3]
[372124031,1752528465218,-460.0,0.00022191,3]
[372124032,1752528465240,-460.0,0.00022191,3]
[372124033,1752528465263,-460.0,0.00022191,3]
[372124034,1752528465286,-460.0,0.00022191,3]
[372124035,1752528465307,-460.0,0.00022191,3]
[372124036,1752528465329,-460.0,0.00022191,3]
[372124037,1752528465351,-460.0,0.00022191,3]
[372124038,1752528465375,-460.0,0.00022191,3]
[372124039,1752528465397,-460.0,0.00022191,3]
[372124040,1752528465421,-460.0,0.00022191,3]
[372124041,1752528465449,-161.80294239,0.00022191,3]
[372124042,1752528465473,-460.0,0.00022191,3]
[372124043,1752528465496,-460.0,0.00022191,3]
[372124044,1752528465519,-510.22,0.00022191,3]
[372124045,1752528465542,-519.87383026,0.00022191,3]
[372124046,1752528465563,-323.47531676,0.00022191,3]
[372124047,1752528465586,-460.0,0.00022191,3]
[372124048,1752528465610,-460.0,0.00022191,3]
[372124049,1752528465633,-460.0,0.00022191,3]
[372124050,1752528465655,-460.0,0.00022191,3]
[372124051,1752528465677,-460.0,0.00022191,3]
[372124052,1752528465701,-803.36,0.00022191,3]
[372124053,1752528465724,-460.0,0.00022191,3]
[372124054,1752528465745,-460.0,0.00022191,3]
[372124055,1752528465768,-460.0,0.00022191,3]
[372124056,1752528465790,-460.0,0.00022191,3]
[372124057,1752528465813,-460.0,0.00022191,3]
[372124058,1752528465836,-859.84,0.00022191,3]
[372124059,1752528465859,-460.0,0.00022191,3]
[372124060,1752528465881,-460.0,0.00022191,3]
[372124061,1752528465904,-460.0,0.00022191,3]
[372124062,1752528465927,-460.0,0.00022191,3]
[372124063,1752528465948,-224.11667972,0.00022191,3]
[372124064,1752528465971,-460.0,0.00022191,3]
[372124065,1752528465992,-460.0,0.00022191,3]
[372124066,1752528466015,-460.0,0.00022191,3]
[372124067,1752528466037,-20569.45,0.000222,2]
[372124068,1752528466059,-1462.18,0.000222,7]
[372124069,1752528466083,-160.023692,0.00022203,3]
[372124070,1752528466104,-2000.0,0.000224,2]
[372124071,1752528466127,-160.023692,0.0002241,2]
[372124072,1752528466148,-1160.0,0.00022419,2]
[372124073,1752528466169,-801.60390457,0.00022465,2]
[372124074,1752528466190,-3206.41561826,0.00022465,2]
[372124075,1752528466212,-7207.22070594,0.00022465,2]
[372124076,1752528466236,-607.25,0.00022465,2]
[372124077,1752528466259,-460.0,0.00022465,3]
[372124078,1752528466281,-460.0,0.00022465,3]
[372124079,1752528466304,-311.03,0.00022465,3]
[372124080,1752528466326,-460.0,0.00022465,3]
[372124081,1752528466348,-460.0,0.00022465,3]
[372124082,1752528466371,-460.0,0.00022465,3]
[372124083,1752528466396,-508.34512735,0.00022465,3]
[372124084,1752528466420,-460.0,0.00022465,3]
[372124085,1752528466443,-506.36677536,0.00022465,3]
[372124086,1752528466468,-460.0,0.00022465,3]
[372124087,1752528466491,-460.0,0.00022465,3]
[372124088,1752528466515,-460.0,0.00022465,3]
[372124089,1752528466537,-460.0,0.00022465,3]
[372124090,1752528466558,-460.0,0.00022465,3]
[372124091,1752528466582,-460.0,0.00022465,3]
[372124092,1752528466604,-460.0,0.00022465,3]
[372124093,1752528466625,-460.0,0.00022465,3]
[372124094,1752528466648,-460.0,0.00022465,3]
[372124095,1752528466776,-794.77,0.00022465,3]
[372124096,1752528466802,-460.0,0.00022465,3]
[372124097,1752528466826,-500.0,0.00022465,3]
[372124098,1752528466851,-460.0,0.00022465,3]
[372124099,1752528466875,-467.25,0.00022465,3]
[372124100,1752528466897,-460.0,0.00022465,3]
[372124101,1752528466922,-290.6,0.00022465,3]
[372124102,1752528466947,-364.52523414,0.00022465,3]
[372124103,1752528466972,-1779.38,0.00022465,3]
[372124104,1752528466995,-460.0,0.00022465,3]
[372124105,1752528467019,-460.0,0.00022465,3]
[372124106,1752528467042,-460.0,0.00022465,3]
[372124107,1752528467065,-460.0,0.00022465,3]
[372124108,1752528467088,-460.0,0.00022465,3]
[372124109,1752528467112,-460.0,0.00022465,3]
[372124110,1752528467135,-443.41941109,0.00022465,3]
[372124111,1752528467159,-460.0,0.00022465,3]
[372124112,1752528467184,-510.22,0.00022465,3]
[372124113,1752528467206,-460.0,0.00022465,3]
[372124114,1752528467229,-460.0,0.00022465,3]
[372124115,1752528467253,-803.36,0.00022465,3]
[372124116,1752528467276,-460.0,0.00022465,3]
[372124117,1752528467311,-859.84,0.00022465,3]
[372124118,1752528467334,-460.0,0.00022465,3]
[372124119,1752528467356,-460.0,0.00022465,3]
[372124120,1752528467385,-1469.92100638,0.00022486,7]
[372124121,1752528467408,-313.03756034,0.00022512,2]
[372124122,1752528467431,-647.0,0.00022565,2]
[372124123,1752528467453,-2154.0,0.00022565,2]
[372124124,1752528467475,-968.0,0.00022565,2]
[372124125,1752528467496,-407.0,0.00022565,2]
[372124126,1752528467521,-1954.81,0.000226,2]
[372124127,1752528467544,-199.744894,0.00022603,2]
[372124128,1752528467567,-607.33,0.00022739,2]
[372124129,1752528467589,-460.0,0.00022739,3]
[372124130,1752528467612,-460.0,0.00022739,3]
[372124131,1752528467634,-460.0,0.00022739,3]
[372124132,1752528467657,-460.0,0.00022739,3]
[372124133,1752528467680,-460.0,0.00022739,3]
[372124134,1752528467703,-460.0,0.00022739,3]
[372124135,1752528467726,-460.0,0.00022739,3]
[372124136,1752528467748,-460.0,0.00022739,3]
[372124137,1752528467772,-460.0,0.00022739,3]
[372124138,1752528467795,-204.08,0.00022739,3]
[372124139,1752528467819,-794.77,0.00022739,3]
[372124140,1752528467844,-460.0,0.00022739,3]
[372124141,1752528467868,-460.0,0.00022739,3]
[372124142,1752528467893,-467.25,0.00022739,3]
[372124143,1752528467916,-1779.38,0.00022739,3]
[372124144,1752528467938,-460.0,0.00022739,3]
[372124145,1752528467962,-460.0,0.00022739,3]
[372124146,1752528467985,-460.0,0.00022739,3]
[372124147,1752528468008,-460.0,0.00022739,3]
[372124148,1752528468032,-460.0,0.00022739,3]
[372124149,1752528468056,-334.94,0.00022739,3]
[372124150,1752528468080,-596.37,0.00022739,3]
[372124151,1752528468104,-510.22,0.00022739,3]
[372124152,1752528468128,-460.0,0.00022739,3]
[372124153,1752528468152,-460.0,0.00022739,3]
[372124154,1752528468176,-803.36,0.00022739,3]
[372124155,1752528468201,-859.84,0.00022739,3]
[372124156,1752528468224,-460.0,0.00022739,3]
[372124157,1752528468247,-460.0,0.00022739,3]
[372124158,1752528468270,-449.939442,0.0002279,8]
[372124159,1752528468296,-1469.92100638,0.00022797,7]
[372124160,1752528468319,-300.0,0.00022803,2]
[372124161,1752528468342,-215.0738,0.00022843,2]
[372124162,1752528468364,-800.0,0.00022926,2]
[372124163,1752528468391,-1260.0,0.00022967,2]
[372124164,1752528468415,-42246.99,0.00023,7]
[372124165,1752528468437,-151.0,0.00023,7]
[372124166,1752528468463,-82.00344791,0.00023,7]
[372124167,1752528469101,-500.0,0.00016437,2]
[372124168,1752528469124,-500.0,0.00016437,2]
[372124169,1752528469147,-500.0,0.00016437,2]
[372124170,1752528469170,-500.0,0.00016437,2]
[372124171,1752528469193,-500.0,0.00016437,2]
[372124172,1752528469215,-500.0,0.00016437,2]
[372124173,1752528469240,-403.44720709,0.00016437,2]
[372124174,1752528469262,-500.0,0.00016437,2]
[372124175,1752528469286,-500.0,0.00016437,2]
[372124176,1752528469456,-500.0,0.00016437,2]
[372124177,1752528469481,-500.0,0.00016437,2]
[372124178,1752528469503,-500.0,0.00016437,2]
[372124179,1752528469525,-500.0,0.00016437,2]
[372124180,1752528469547,-500.0,0.00016437,2]
[372124181,1752528469566,-760.06896246,0.0001808,2]
[372124182,1752528469586,-568.9498841,0.00021917,3]
[372124183,1752528469607,-460.0,0.00021917,3]
[372124184,1752528469629,-460.0,0.00022191,3]
[372124185,1752528469654,-460.0,0.00022465,3]
[372124186,1752528469676,-460.0,0.00022739,3]
[372124187,1752528469696,-68.99655209,0.00023,7]
[372124188,1752528469716,-183.529366,0.00023,7]
[372124189,1752528469737,-150.0,0.00023,5]
[372124190,1752528469757,-160.0,0.00023,3]
[372124191,1752528469777,-160.0,0.00023,3]
[372124192,1752528469798,-151.0,0.00023,7]
[372124193,1752528469818,-525.46609069,0.00023,3]
[372124194,1752528469838,-230.73061749,0.00023,3]
[372124195,1752528469858,-838.70323114,0.00023,3]
[372124196,1752528469879,-460.0,0.00023013,3]
[372124197,1752528469901,-460.0,0.00023013,3]
[372124198,1752528469922,-547.2,0.00023013,3]
[372124199,1752528469943,-448.7098513,0.00023013,3]
[372124200,1752528469965,-460.0,0.00023013,3]
[372124201,1752528469986,-460.0,0.00023013,3]
[372124202,1752528470006,-460.0,0.00023013,3]
[372124203,1752528470027,-794.77,0.00023013,3]
[372124204,1752528470048,-460.0,0.00023013,3]
[372124205,1752528470069,-460.0,0.00023013,3]
[372124206,1752528470089,-467.25,0.00023013,3]
[372124207,1752528470112,-1779.38,0.00023013,3]
[372124208,1752528470133,-460.0,0.00023013,3]
[372124209,1752528470153,-460.0,0.00023013,3]
[372124210,1752528470173,-460.0,0.00023013,3]
[372124211,1752528470194,-460.0,0.00023013,3]
[372124212,1752528470216,-460.0,0.00023013,3]
[372124213,1752528470237,-510.22,0.00023013,3]
[372124214,1752528470258,-460.0,0.00023013,3]
[372124215,1752528470278,-460.0,0.00023013,3]
[372124216,1752528470300,-803.36,0.00023013,3]
[372124217,1752528470322,-859.84,0.00023013,3]
[372124218,1752528470343,-460.0,0.00023013,3]
[372124219,1752528470363,-460.0,0.00023013,3]
[372124220,1752528470386,-151.0,0.00023014,7]
[372124221,1752528470405,-1152.0,0.00023044,2]
[372124222,1752528470429,-1469.92100638,0.00023107,8]
[372124223,1752528470450,-153.0,0.00023151,2]
[372124224,1752528470469,-153.0,0.00023151,2]
[372124225,1752528470488,-153.0,0.00023151,2]
[372124226,1752528470508,-214.33456592,0.000232,3]
[372124227,1752528470528,-160.0,0.000232,3]
[372124228,1752528470549,-12600.81778503,0.000232,3]
[372124229,1752528470568,-160.0,0.000232,3]
[372124230,1752528470588,-215.47013733,0.000232,3]
[372124231,1752528470611,-151.0,0.000232,7]
[372124232,1752528470630,-151.0,0.000232,7]
[372124233,1752528470650,-151.0,0.000232,7]
[372124234,1752528470671,-500.0,0.00023256,2]
[372124235,1752528470690,-4443.51370161,0.00023256,2]
[372124236,1752528470710,-795.6670211,0.0002326,2]
[372124237,1752528470731,-460.0,0.00023287,3]
[372124238,1752528470752,-460.0,0.00023287,3]
[372124239,1752528470775,-460.0,0.00023287,3]
[372124240,1752528470797,-794.77,0.00023287,3]
[372124241,1752528470820,-383.67730126,0.00023287,3]
[372124242,1752528470841,-460.0,0.00023287,3]
[372124243,1752528470862,-467.25,0.00023287,3]
[372124244,1752528470884,-1779.38,0.00023287,3]
[372124245,1752528470904,-460.0,0.00023287,3]
[372124246,1752528470925,-460.0,0.00023287,3]
[372124247,1752528470948,-460.0,0.00023287,3]
[372124248,1752528470969,-460.0,0.00023287,3]
[372124249,1752528470990,-460.0,0.00023287,3]
[372124250,1752528471012,-510.22,0.00023287,3]
[372124251,1752528471032,-460.0,0.00023287,3]
[372124252,1752528471053,-803.36,0.00023287,3]
[372124253,1752528471073,-460.0,0.00023287,3]
[372124254,1752528471094,-460.0,0.00023287,3]
[372124255,1752528471116,-859.84,0.00023287,3]
[372124256,1752528471136,-460.0,0.00023287,3]
[372124257,1752528471155,-3563.46,0.000233,7]
[372124258,1752528471174,-1315.11112406,0.00023319,9]
[372124259,1752528471194,-541.19,0.00023398,2]
[372124260,1752528471214,-20569.45,0.000234,2]
[372124261,1752528471234,-1462.18,0.000234,7]
[372124262,1752528471254,-151.0,0.000234,7]
[372124263,1752528471274,-151.0,0.000234,7]
[372124264,1752528471293,-151.0,0.000234,7]
[372124265,1752528471314,-151.0,0.000234,7]
[372124266,1752528471332,-151.239956,0.000234,7]
[372124267,1752528471352,-151.0,0.000234,7]
[372124268,1752528471374,-2047.599999,0.000234,2]
[372124269,1752528471394,-104.04979142,0.000234,7]
[372124270,1752528472239,-500.0,0.00016437,2]
[372124271,1752528472261,-500.0,0.00016437,2]
[372124272,1752528472283,-500.0,0.00016437,2]
[372124273,1752528472307,-500.0,0.00016437,2]
[372124274,1752528472329,-500.0,0.00016437,2]
[372124275,1752528472350,-500.0,0.00016437,2]
[372124276,1752528472372,-500.0,0.00016437,2]
[372124277,1752528472395,-500.0,0.00016437,2]
[372124278,1752528472419,-500.0,0.00016437,2]
[372124279,1752528472440,-500.0,0.00016437,2]
[372124280,1752528472466,-500.0,0.00016437,2]
[372124281,1752528472488,-500.0,0.00016437,2]
[372124282,1752528472511,-500.0,0.00016437,2]
[372124283,1752528472537,-500.0,0.00016437,2]
[372124284,1752528472558,-500.0,0.00016437,2]
[372124285,1752528472579,-500.0,0.00016437,2]
[372124286,1752528472601,-500.0,0.00016437,2]
[372124287,1752528472622,-500.0,0.00016437,2]
[372124288,1752528472644,-500.0,0.00016437,2]
[372124289,1752528472664,-500.0,0.00016437,2]
[372124290,1752528472685,-500.0,0.00016437,2]
[372124291,1752528472708,-500.0,0.00016437,2]
[372124292,1752528472729,-500.0,0.00016437,2]
[372124293,1752528472750,-500.0,0.00016437,2]
[372124294,1752528472773,-474.14495264,0.00016437,2]
[372124295,1752528472794,-500.0,0.00016437,2]
[372124296,1752528472813,-500.0,0.00016437,2]
[372124297,1752528472833,-500.0,0.00016437,2]
[372124298,1752528472854,-500.0,0.00016437,2]
[372124299,1752528472875,-500.0,0.00016437,2]
[372124300,1752528472898,-500.0,0.00016437,2]
[372124301,1752528472920,-500.0,0.00016437,2]
[372124302,1752528472942,-500.0,0.00016437,2]
[372124303,1752528472964,-500.0,0.00016437,2]
[372124304,1752528472987,-500.0,0.00016437,2]
[372124305,1752528473009,-500.0,0.00016437,2]
[372124306,1752528473030,-500.0,0.00016437,2]
[372124307,1752528473052,-500.0,0.00016437,2]
[372124308,1752528473074,-500.0,0.00016437,2]
[372124309,1752528473096,-500.0,0.00016437,2]
[372124310,1752528473119,-500.0,0.00016437,2]
[372124311,1752528473140,-500.0,0.00016437,2]
[372124312,1752528473162,-500.0,0.00016437,2]
[372124313,1752528473184,-500.0,0.00016437,2]
[372124314,1752528473206,-500.0,0.00016437,2]
[372124315,1752528473229,-500.0,0.00016437,2]
[372124316,1752528473253,-500.0,0.00016437,2]
[372124317,1752528473275,-500.0,0.00016437,2]
[372124318,1752528473297,-500.0,0.00016437,2]
[372124319,1752528473320,-500.0,0.00016437,2]
[372124320,1752528473343,-500.0,0.00016437,2]
[372124321,1752528473366,-500.0,0.00016437,2]
[372124322,1752528473393,-500.0,0.00016437,2]
[372124323,1752528473418,-500.0,0.00016437,2]
[372124324,1752528473441,-500.0,0.00016437,2]
[372124325,1752528473463,-500.0,0.00016437,2]
[372124326,1752528473488,-500.0,0.00016437,2]
[372124327,1752528473510,-500.0,0.00016437,2]
[372124328,1752528473534,-500.0,0.00016437,2]
[372124329,1752528473556,-500.0,0.00016437,2]
[372124330,1752528473578,-500.0,0.00016437,2]
[372124331,1752528473602,-500.0,0.00016437,2]
[372124332,1752528473625,-500.0,0.00016437,2]
[372124333,1752528473648,-500.0,0.00016437,2]
[372124334,1752528473670,-411.20444922,0.00016437,2]
[372124335,1752528473692,-500.0,0.00016437,2]
[372124336,1752528473713,-760.06896246,0.00019987,2]
[372124337,1752528473734,-760.06896246,0.00021894,2]
[372124338,1752528473754,-460.0,0.00021917,3]
[372124339,1752528473775,-460.0,0.00021917,3]
[372124340,1752528473799,-460.0,0.00021917,3]
[372124341,1752528473820,-460.0,0.00021917,3]
[372124342,1752528473843,-460.0,0.00021917,3]
[372124343,1752528473864,-460.0,0.00021917,3]
[372124344,1752528473886,-460.0,0.00021917,3]
[372124345,1752528473906,-460.0,0.00021917,3]
[372124346,1752528473927,-501.06297882,0.00021917,3]
[372124347,1752528473949,-46.95020858,0.000234,7]
[372124348,1752528473969,-151.0,0.000234,7]
[372124349,1752528473990,-151.0,0.000234,7]
[372124350,1752528474010,-151.0,0.000234,7]
[372124351,1752528474032,-160.023692,0.00023402,5]
[372124352,1752528474056,-1469.92100638,0.00023417,9]
[372124353,1752528474077,-541.19,0.00023498,7]
[372124354,1752528474098,-1360.0,0.00023515,2]
[372124355,1752528474215,-151.0,0.00023527,7]
[372124356,1752528474236,-460.0,0.00023561,3]
[372124357,1752528474258,-460.0,0.00023561,3]
[372124358,1752528474280,-460.0,0.00023561,3]
[372124359,1752528474302,-794.77,0.00023561,3]
[372124360,1752528474324,-460.0,0.00023561,3]
[372124361,1752528474345,-467.25,0.00023561,3]
[372124362,1752528474367,-1779.38,0.00023561,3]
[372124363,1752528474392,-460.0,0.00023561,3]
[372124364,1752528474413,-460.0,0.00023561,3]
[372124365,1752528474436,-460.0,0.00023561,3]
[372124366,1752528474458,-460.0,0.00023561,3]
[372124367,1752528474479,-219.03523312,0.00023561,3]
[372124368,1752528474501,-510.22,0.00023561,3]
[372124369,1752528474520,-460.0,0.00023561,3]
[372124370,1752528474542,-803.36,0.00023561,3]
[372124371,1752528474563,-460.0,0.00023561,3]
[372124372,1752528474583,-460.0,0.00023561,3]
[372124373,1752528474604,-859.84,0.00023561,3]
[372124374,1752528474625,-460.0,0.00023561,3]
[372124375,1752528474645,-541.19,0.00023598,3]
[372124376,1752528474664,-151.53939782,0.00023605,2]
[372124377,1752528474684,-541.19,0.00023698,3]
[372124378,1752528474703,-241.0,0.000237,9]
[372124379,1752528474727,-1469.92100638,0.00023728,9]
[372124380,1752528474748,-168.0,0.00023745,2]
[372124381,1752528474769,-168.0,0.00023768,2]
[372124382,1752528474790,-313.03756034,0.00023787,2]
[372124383,1752528474810,-541.19,0.00023798,2]
[372124384,1752528474830,-771.05290904,0.000238,2]
[372124385,1752528474851,-17660.36440595,0.00023801,3]
[372124386,1752528474872,-301.065003,0.00023801,7]
[372124387,1752528474893,-151.0,0.00023801,7]
[372124388,1752528474914,-151.0,0.00023801,7]
[372124389,1752528474935,-210.405118,0.00023801,7]
[372124390,1752528474956,-241.315794,0.00023801,7]
[372124391,1752528474976,-210.405118,0.00023801,7]
[372124392,1752528474997,-49870.77128279,0.00023801,2]
[372124393,1752528475085,-500.0,0.00016437,2]
[372124394,1752528475106,-460.0,0.00021917,3]
[372124395,1752528475125,-92795.80265182,0.00023801,2]
[372124396,1752528475146,-760.06896246,0.00023801,2]
[372124397,1752528475167,-168.0,0.00023807,2]
[372124398,1752528475188,-460.0,0.00023835,3]
[372124399,1752528475209,-460.0,0.00023835,3]
[372124400,1752528475232,-460.0,0.00023835,3]
[372124401,1752528475253,-794.77,0.00023835,3]
[372124402,1752528475273,-460.0,0.00023835,3]
[372124403,1752528475295,-467.25,0.00023835,3]
[372124404,1752528475319,-1779.38,0.00023835,3]
[372124405,1752528475340,-186.31,0.00023835,3]
[372124406,1752528475360,-460.0,0.00023835,3]
[372124407,1752528475386,-460.0,0.00023835,3]
[372124408,1752528475407,-460.0,0.00023835,3]
[372124409,1752528475430,-510.22,0.00023835,3]
[372124410,1752528475451,-460.0,0.00023835,3]
[372124411,1752528475472,-803.36,0.00023835,3]
[372124412,1752528475493,-460.0,0.00023835,3]
[372124413,1752528475515,-859.84,0.00023835,3]
[372124414,1752528475535,-460.0,0.00023835,3]
[372124415,1752528475554,-160.0,0.00023868,4]
[372124416,1752528475573,-541.19,0.00023898,7]
[372124417,1752528475593,-500.0,0.000239,2]
[372124418,1752528475613,-151.0,0.000239,7]
[372124419,1752528475634,-151.0,0.000239,7]
[372124420,1752528475655,-151.0,0.000239,7]
[372124421,1752528475674,-151.0,0.000239,7]
[372124422,1752528475694,-151.0,0.000239,7]
[372124423,1752528475714,-151.0,0.000239,7]
[372124424,1752528475735,-151.0,0.000239,7]
[372124425,1752528475754,-494.39671339,0.00023901,2]
[372124426,1752528475773,-150000.0,0.00023901,2]
[372124427,1752528475793,-150000.0,0.00023901,2]
[372124428,1752528475813,-150000.0,0.00023901,2]
[372124429,1752528475833,-150000.0,0.00023901,2]
[372124430,1752528475853,-64893.63896233,0.00023901,2]
[372124477,1752528633306,-300.0,0.00016072,2]
[372124478,1752528633320,-9808.23601683,0.00016073,2]
[372124479,1752528633338,-4037.33404896,0.00016073,2]
[372124605,1752528650297,-121721.037243,0.00016073,2]
[372124606,1752528650427,-515.95806706,0.00016073,2]
[372124607,1752528650439,-820.34672027,0.00016073,2]
[372124608,1752528650452,-233097.08790388,0.00016073,2]
[372124609,1752528650463,-185.49292149,0.000164,2]
[372124610,1752528650473,-13071.56978982,0.000165,2]
[372124611,1752528650483,-420.0,0.00017571,2]
[372124612,1752528650497,-24970.66799223,0.00017879,2]
[372124613,1752528650509,-215.47013733,0.00017879,2]
[372124614,1752528650520,-838.70323114,0.00017879,2]
[372124615,1752528650531,-160.0,0.00017879,2]
[372124616,1752528650541,-160.0,0.00017879,2]
[372124617,1752528650551,-214.33456592,0.00017879,2]
[372124618,1752528650561,-525.46609069,0.00017879,2]
[372124619,1752528650571,-230.73061749,0.00017879,2]
[372124620,1752528650581,-160.0,0.00017879,2]
[372124621,1752528650703,-342.98156831,0.000179,2]
[372124622,1752528650714,-342.98156815,0.00018176,2]
[372124623,1752528650724,-342.98156815,0.00018452,2]
[372124624,1752528650733,-342.98156815,0.00018728,2]
[372124625,1752528650743,-179.9820018,0.00018862,2]
[372124626,1752528650752,-342.98156815,0.00019003,2]
[372124627,1752528650761,-587.0,0.00019209,2]
[372124628,1752528650770,-342.98156815,0.00019279,2]
[372124629,1752528650780,-342.98156815,0.00019555,2]
[372124630,1752528650789,-647.0,0.00019709,2]
[372124631,1752528650799,-342.98156815,0.00019831,2]
[372124632,1752528650808,-150.00051376,0.0002,7]
[372124633,1752528650818,-151.0,0.00020036,2]
[372124634,1752528650827,-342.98156815,0.00020107,2]
[372124635,1752528650836,-342.98156815,0.00020383,3]
[372124636,1752528650846,-342.98156815,0.00020659,3]
[372124637,1752528650856,-342.98156815,0.00020934,4]
[372124638,1752528650865,-823.0,0.00021,2]